bitfinex/quotes_SOLUSD_20250228
["timestamp","ask_amount","ask_price","bid_price","bid_amount"]
[1740764548472,82.5132363,144.81,144.72,81.0]
[1740764549072,0.14216157,144.79,144.7,81.0]
[1740764549277,80.7,144.78,144.66,225.92]
[1740764549471,80.7,144.77,144.66,232.8327]
[1740764549673,80.7,144.77,144.66,255.5327]
[1740764549873,80.7,144.77,144.67,24.7]
[1740764550180,8.1864,144.8,144.67,243.7]
[1740764550385,6.6225,144.8,144.76,312.0]
[1740764550569,80.7,144.79,144.76,312.0]
[1740764551286,80.7,144.79,144.71,15.83]
[1740764551487,6.6225,144.8,144.71,225.92]
[1740764552776,80.7,144.79,144.7,81.0]
[1740764552985,87.62,144.79,144.7,81.0]
[1740764553176,0.14216157,144.78,144.7,81.0]
[1740764553380,1.95577036,144.78,144.7,81.0]
[1740764553989,80.7,144.79,144.7,81.0]
[1740764554180,80.7,144.79,144.73,312.0]
[1740764554999,80.7,144.79,144.7,81.0]
[1740764557883,6.92,144.78,144.73,312.0]
[1740764558184,1.526,144.76,144.73,312.0]
[1740764558396,80.7,144.75,144.73,312.0]
[1740764558697,80.7,144.75,144.65,81.0]
[1740764559480,0.14216157,144.74,144.65,81.0]
[1740764559680,6.558,144.74,144.65,219.0]
[1740764559876,1.8139417,144.79,144.66,2.0]
[1740764560078,1.8139417,144.79,144.65,219.0]
[1740764560079,80.7,144.81,144.65,221.0]
[1740764560282,1.8133371,144.8,144.65,219.0]
[1740764560481,1.8133371,144.8,144.66,2.0]
[1740764560785,6.94,144.8,144.66,2.0]
[1740764561198,6.94,144.8,144.65,221.0]
[1740764561199,6.4243,144.77,144.65,221.0]
[1740764561399,87.1243,144.77,144.65,81.0]
[1740764561720,87.1243,144.77,144.71,312.0]
[1740764563017,80.84216157,144.76,144.71,312.0]
[1740764563304,80.84216157,144.76,144.65,87.98]
[1740764564102,80.7,144.76,144.65,87.98]
[1740764564314,82.51379275,144.76,144.65,87.98]
[1740764564490,0.14216157,144.75,144.65,87.98]
[1740764564687,0.14216157,144.75,144.63,219.0]
[1740764564688,6.2072,144.73,144.63,219.0]
[1740764564915,6.2072,144.73,144.59,2.0]
[1740764564916,1.6487,144.71,144.6,81.0]
[1740764565113,1.6487,144.71,144.6,219.0]
[1740764566013,80.7,144.7,144.6,81.0]
[1740764566312,80.7,144.7,144.61,312.0]
[1740764566816,1.95681482,144.69,144.61,312.0]
[1740764567109,86.8927,144.68,144.61,312.0]
[1740764567301,80.7,144.67,144.61,312.0]
[1740764567506,80.7,144.67,144.58,88.0]
[1740764567813,80.7,144.66,144.58,81.0]
[1740764568400,80.84216157,144.65,144.6,0.03]
[1740764569516,87.68,144.64,144.6,0.03]
[1740764569701,80.7,144.63,144.6,0.03]
[1740764570409,6.2107,144.62,144.6,0.03]
[1740764571299,80.7,144.66,144.6,0.03]
[1740764571498,86.7633,144.66,144.6,0.03]
[1740764574104,86.7633,144.66,144.6,312.03]
[1740764574614,80.7,144.65,144.6,312.03]
[1740764575837,86.7633,144.66,144.6,312.03]
[1740764576001,86.7633,144.66,144.6,0.03]
[1740764577421,6.98,144.65,144.6,0.03]
[1740764578926,99.49181043,144.64,144.6,0.03]
[1740764579227,80.7,144.63,144.6,0.03]
[1740764580128,0.14216157,144.62,144.6,0.03]
[1740764580315,6.0371,144.61,144.6,0.03]
[1740764580629,7.5756,144.61,144.6,0.03]
[1740764581428,7.5756,144.61,144.5,81.9719968]
[1740764581638,7.5756,144.61,144.6,0.03]
[1740764582215,7.5756,144.61,144.52,6.98]
[1740764582610,2.0,144.44,144.29,2.0]
[1740764582920,2.0,144.52,144.29,2.0]
[1740764582921,2.0,144.52,144.35,2.0]
[1740764583225,116.44,144.61,144.35,2.0]
[1740764583226,6.72126157,144.58,144.4,2.0]
[1740764583414,2.0,144.56,144.43,2.0]
[1740764583616,2.0,144.54,144.43,158.7]
[1740764583833,2.0,144.54,144.43,0.1290862]
[1740764583834,2.0,144.47,144.43,0.1290862]
[1740764584016,2.0,144.45,144.43,0.1290862]
[1740764584218,6.3051,144.47,144.43,312.1290862]
[1740764584462,2.0,144.5,144.43,312.1290862]
[1740764584613,2.0,144.48,144.43,312.1290862]
[1740764584812,2.0,144.47,144.43,0.1290862]
[1740764585012,2.0,144.5,144.43,0.1290862]
[1740764585207,2.0,144.5,144.43,8.62e-05]
[1740764585208,4.0,144.44,144.43,8.62e-05]
[1740764585423,11.9179328,144.44,144.43,8.62e-05]
[1740764585625,12.06009437,144.44,144.43,8.62e-05]
[1740764585916,30.70974323,144.44,144.43,8.62e-05]
[1740764586125,2.0,144.38,144.24,20.7]
[1740764586326,2.0,144.36,144.23,140.0]
[1740764586527,10.12,144.38,144.25,2.0]
[1740764586726,2.0,144.38,144.26,8.14]
[1740764586927,2.0,144.37,144.26,8.14]
[1740764587232,6.6629,144.5,144.34,2.0]
[1740764587537,6.6629,144.5,144.38,2.0]
[1740764587743,2.0,144.53,144.49,312.0]
[1740764588033,6.6629,144.55,144.49,312.0]
[1740764588221,2.0,144.52,144.46,8.6]
[1740764588424,6.6629,144.55,144.46,8.6]
[1740764588619,6.6304,144.6,144.47,20.64964886]
[1740764588826,2.0,144.58,144.49,2.0]
[1740764589027,2.0,144.58,144.49,140.0]
[1740764589338,6.6304,144.6,144.49,140.0]
[1740764589717,2.0,144.62,144.5,20.64964886]
[1740764589923,8.3994,144.65,144.5,158.64964886]
[1740764590138,8.3994,144.65,144.52,18.64964886]
[1740764590321,2.0,144.64,144.53,8.58]
[1740764590640,2.0,144.64,144.53,146.58]
[1740764590840,2.0,144.58,144.5,138.0]
[1740764591233,2.0,144.58,144.57,312.0]
[1740764592125,2.0,144.51,144.42,138.0]
[1740764592333,2.0,144.49,144.4,8.58]
[1740764592636,2.0,144.49,144.36,118.0912]
[1740764592637,2.0,144.46,144.36,263.1]
[1740764592829,2.0,144.48,144.36,263.1]
[1740764593027,2.0,144.48,144.37,18.64964886]
[1740764593229,2.0,144.47,144.36,263.1]
[1740764593616,2.0,144.47,144.36,270.027]
[1740764593819,2.0,144.48,144.44,0.03]
[1740764594014,2.0,144.49,144.44,0.03]
[1740764594242,8.2135,144.51,144.44,0.03]
[1740764594547,20.46638239,144.54,144.44,0.03]
[1740764594548,2.0,144.52,144.44,0.03]
[1740764594946,2.0,144.53,144.44,0.03]
[1740764595122,2.0,144.53,144.52,312.0]
[1740764596931,2.0,144.49,144.42,227.56]
[1740764597147,2.0,144.49,144.42,89.56]
[1740764597942,2.0,144.49,144.48,312.0]
[1740764598338,2.0,144.47,144.42,8.56]
[1740764598531,2.0,144.47,144.38,219.0]
[1740764598736,2.0,144.46,144.38,89.5]
[1740764600236,2.0,144.49,144.39,6.9256]
[1740764600444,80.7,144.51,144.4,18.64964886]
[1740764600629,2.0,144.53,144.4,239.64964886]
[1740764600830,82.7,144.54,144.43,18.64964886]
[1740764601045,82.7,144.54,144.44,8.46]
[1740764601557,82.7,144.54,144.53,312.0]
[1740764603432,80.7,144.54,144.53,312.0]
[1740764603735,2.0,144.55,144.47,18.64964886]
[1740764604045,2.0,144.55,144.47,237.64964886]
[1740764604354,2.0,144.55,144.47,219.0]
[1740764605737,2.0,144.56,144.47,219.0]
[1740764605939,2.0,144.56,144.47,81.0]
[1740764606532,2.0,144.55,144.47,81.0]
[1740764607341,2.0,144.57,144.47,81.0]
[1740764607933,2.0,144.55,144.47,81.0]
[1740764608548,2.0,144.53,144.47,81.0]
[1740764608742,2.0,144.52,144.47,81.0]
[1740764609459,2.0,144.49,144.43,197.54]
[1740764609656,2.0,144.49,144.48,312.0]
[1740764609861,6.2028,144.51,144.39,91.0568]
[1740764609862,2.0,144.47,144.39,89.0568]
[1740764610047,2.0,144.47,144.39,90.965]
[1740764611055,2.0,144.49,144.39,111.785]
[1740764611246,2.0,144.48,144.39,111.785]
[1740764611649,2.0,144.47,144.39,90.965]
[1740764611849,2.0,144.48,144.39,90.965]
[1740764612049,2.0,144.47,144.39,90.965]
[1740764612240,2.0,144.47,144.39,81.0]
[1740764612441,2.0,144.45,144.39,81.0]
[1740764612765,2.0,144.47,144.42,312.0]
[1740764613263,2.0,144.47,144.39,81.0]
[1740764613652,82.7,144.46,144.36,219.0]
[1740764613873,2.0,144.44,144.36,81.0]
[1740764614955,2.0,144.47,144.36,81.0]
[1740764615139,2.0,144.48,144.36,225.9269]
[1740764615339,2.0,144.47,144.36,225.9269]
[1740764615555,82.7,144.49,144.37,41.46964886]
[1740764615967,2.0,144.48,144.37,41.46964886]
[1740764616668,2.0,144.48,144.37,48.39604886]
[1740764616842,82.7,144.49,144.37,48.39604886]
[1740764617041,8.2028,144.51,144.4,39.46964886]
[1740764617242,6.2028,144.51,144.49,312.0]
[1740764617666,2.0,144.53,144.49,312.0]
[1740764617975,0.063,144.53,144.43,25.57334886]
[1740764618163,2.063,144.53,144.43,219.0]
[1740764618347,2.063,144.53,144.43,81.0]
[1740764618348,2.0,144.49,144.43,81.0]
[1740764618660,2.0,144.49,144.41,227.24]
[1740764619169,2.0,144.47,144.41,8.24]
[1740764619374,2.0,144.44,144.38,219.0]
[1740764619576,2.0,144.44,144.38,81.0]
[1740764620281,2.0,144.46,144.38,81.0]
[1740764620448,6.4775,144.47,144.38,87.926]
[1740764620651,6.4775,144.47,144.38,225.926]
[1740764620849,6.4775,144.47,144.46,312.0]
[1740764621048,8.4775,144.47,144.46,312.0]
[1740764621275,8.4775,144.47,144.38,219.0]
[1740764621449,6.4775,144.47,144.38,225.926]
[1740764621850,6.4775,144.47,144.38,219.0]
[1740764622152,8.4775,144.47,144.38,219.0]
[1740764622465,6.4775,144.47,144.38,219.0]
[1740764622669,2.0,144.46,144.38,219.0]
[1740764622967,8.4775,144.47,144.39,20.82]
[1740764623160,6.4775,144.47,144.39,101.82]
[1740764623367,6.4775,144.47,144.39,239.82]
[1740764623767,2.0,144.49,144.39,239.82]
[1740764624348,2.0,144.49,144.48,312.0]
[1740764624554,3.5627,144.5,144.48,312.0]
[1740764624756,3.5627,144.5,144.39,239.82]
[1740764624960,2.0,144.48,144.39,239.82]
[1740764625664,2.0,144.47,144.46,312.0]
[1740764626167,2.0,144.47,144.39,239.82]
[1740764626545,2.0,144.42,144.34,81.0]
[1740764626762,2.0,144.43,144.34,219.0]
[1740764626957,2.0,144.4,144.32,219.0]
[1740764627164,2.0,144.39,144.28,219.0]
[1740764627371,2.0,144.39,144.29,8.28]
[1740764627572,2.0,144.39,144.29,29.1]
[1740764628267,2.0,144.37,144.29,81.0]
[1740764628567,2.0,144.35,144.29,81.0]
[1740764628867,7.853,144.42,144.29,81.0]
[1740764628868,2.0,144.34,144.29,81.0]
[1740764629071,2.0,144.34,144.27,89.28]
[1740764629266,2.0,144.33,144.27,81.0]
[1740764629453,2.0,144.3,144.25,81.0]
[1740764629654,2.0,144.29,144.23,81.0]
[1740764629856,2.0,144.28,144.23,81.0]
[1740764630161,2.0,144.28,144.21,20.82]
[1740764630162,2.0,144.28,144.27,312.0]
[1740764630856,2.0,144.31,144.21,20.82]
[1740764631055,2.0,144.3,144.21,219.0]
[1740764631457,8.5068,144.32,144.21,219.0]
[1740764631656,2.0,144.31,144.22,20.82]
[1740764631854,2.0,144.3,144.22,20.82]
[1740764632471,2.0,144.31,144.22,20.82]
[1740764632999,2.0,144.31,144.22,219.0]
[1740764633154,2.0,144.27,144.19,81.0]
[1740764633353,2.0,144.28,144.19,219.0]
[1740764633554,2.0,144.29,144.19,219.0]
[1740764633754,2.0,144.29,144.26,312.0]
[1740764634270,2.0,144.31,144.26,312.0]
[1740764634479,2.0,144.31,144.22,8.24]
[1740764634651,2.0,144.29,144.22,219.0]
[1740764634855,2.0,144.3,144.22,219.0]
[1740764635171,2.0,144.29,144.22,219.0]
[1740764635364,2.0,144.3,144.22,219.0]
[1740764635675,0.14216157,144.29,144.17,6.9361]
[1740764635875,8.2127,144.26,144.17,219.0]
[1740764636251,6.2127,144.26,144.18,18.64964886]
[1740764636566,6.2127,144.26,144.18,27.02964886]
[1740764636969,10.24,144.29,144.18,27.02964886]
[1740764637170,8.3768,144.3,144.18,246.02964886]
[1740764637364,8.3768,144.3,144.26,312.0]
[1740764637676,2.0,144.32,144.26,312.0]
[1740764637892,2.0,144.32,144.22,2.14216157]
[1740764638054,2.0,144.33,144.22,221.14216157]
[1740764638385,1.81928579,144.41,144.26,20.96216157]
[1740764638682,10.75135177,144.43,144.35,2.14216157]
[1740764638981,10.75135177,144.43,144.36,29.26964886]
[1740764639167,10.75135177,144.43,144.36,27.26964886]
[1740764639370,10.75135177,144.43,144.36,29.26964886]
[1740764639577,10.75135177,144.43,144.36,27.26964886]
[1740764639785,10.75135177,144.43,144.36,29.26964886]
[1740764640469,0.75135177,144.43,144.41,18.64964886]
[1740764640669,0.063,144.48,144.42,8.6]
[1740764640970,0.063,144.48,144.47,312.0]
[1740764642781,0.063,144.48,144.47,330.64964886]
[1740764643276,0.063,144.48,144.47,556.57144886]
[1740764643686,0.063,144.48,144.47,549.64964886]
[1740764644060,0.063,144.53,144.48,2.0]
[1740764644279,0.063,144.53,144.5,18.64964886]
[1740764644662,0.063,144.53,144.5,237.64964886]
[1740764645088,0.063,144.53,144.5,239.64964886]
[1740764645282,0.063,144.53,144.51,20.79181043]
[1740764645481,0.063,144.53,144.51,239.79181043]
[1740764645662,0.063,144.53,144.52,6.9194]
[1740764645864,0.063,144.53,144.51,244.56944886]
[1740764647163,0.063,144.53,144.52,312.0]
[1740764651086,0.063,144.53,144.46,81.0]
[1740764651273,0.14216157,144.52,144.44,81.0]
[1740764651782,80.763,144.53,144.44,81.0]
[1740764652569,0.14216157,144.52,144.44,81.0]
[1740764652769,80.7,144.51,144.37,227.4]
[1740764652988,80.7,144.51,144.38,8.38]
[1740764653192,0.14216157,144.5,144.38,8.38]
[1740764653869,0.14216157,144.5,144.44,312.0]
[1740764654182,80.7,144.49,144.44,312.0]
[1740764655778,80.7,144.48,144.44,312.0]
[1740764656368,80.7,144.47,144.41,0.03]
[1740764657569,105.73061043,144.46,144.41,0.03]
[1740764658582,105.73061043,144.46,144.34,80.53]
[1740764658790,80.7,144.45,144.34,80.53]
[1740764659296,80.7,144.45,144.36,312.0]
[1740764659790,101.30962579,144.44,144.34,80.53]
[1740764661078,1.502,144.41,144.29,80.53]
[1740764661283,8.26,144.4,144.27,138.0]
[1740764661478,80.7,144.39,144.27,218.53]
[1740764661683,80.84216157,144.38,144.27,80.53]
[1740764661978,0.14216157,144.37,144.27,80.53]
[1740764662177,80.7,144.36,144.23,218.53]
[1740764662695,80.7,144.36,144.27,312.0]
[1740764662905,80.84216157,144.35,144.23,80.53]
[1740764663104,88.94,144.34,144.23,218.53]
[1740764663389,6.0779,144.35,144.23,218.53]
[1740764663390,6.0779,144.35,144.24,18.64964886]
[1740764663572,8.26,144.38,144.27,18.64964886]
[1740764663776,6.3703,144.4,144.27,237.17964886]
[1740764663975,6.3703,144.4,144.27,218.53]
[1740764665308,14.6303,144.4,144.27,225.4614]
[1740764665602,14.6303,144.4,144.28,18.64964886]
[1740764666112,14.6303,144.4,144.33,312.0]
[1740764666296,80.7,144.39,144.25,17.3308]
[1740764666608,0.14216157,144.37,144.22,218.56]
[1740764666795,89.0,144.38,144.23,10.3]
[1740764667110,89.0,144.38,144.24,18.64964886]
[1740764667997,89.0,144.38,144.25,20.82]
[1740764668210,89.0,144.38,144.25,239.35]
[1740764668379,89.0,144.38,144.26,18.64964886]
[1740764668695,6.3703,144.4,144.27,0.14216157]
[1740764668893,6.3703,144.4,144.29,18.64964886]
[1740764669076,6.3703,144.4,144.3,8.28]
[1740764669393,6.3703,144.4,144.36,312.0]
[1740764669981,6.3703,144.4,144.3,218.53]
[1740764669982,8.32,144.39,144.3,218.53]
[1740764670292,84.96618324,144.38,144.24,80.53]
[1740764670492,84.96618324,144.38,144.24,218.53]
[1740764670880,99.49181043,144.37,144.22,226.92]
[1740764671077,0.14216157,144.35,144.22,226.92]
[1740764671273,80.84216157,144.35,144.22,226.92]
[1740764671497,80.7,144.34,144.22,226.92]
[1740764672199,87.0323,144.33,144.22,218.56]
[1740764672494,80.84216157,144.32,144.22,0.03]
[1740764672715,80.7,144.31,144.22,80.56]
[1740764672997,80.7,144.31,144.23,312.0]
[1740764673780,80.7,144.31,144.22,80.56]
[1740764675492,14.7523,144.33,144.23,18.64964886]
[1740764675807,6.3323,144.33,144.23,18.64964886]
[1740764676805,6.3323,144.33,144.32,312.0]
[1740764679405,6.3323,144.33,144.31,0.03]
[1740764681123,1.4712,144.32,144.22,0.03]
[1740764681305,6.3323,144.33,144.23,20.82]
[1740764681508,6.3323,144.33,144.23,239.35]
[1740764681999,6.3323,144.33,144.25,20.82]
[1740764682194,6.3323,144.33,144.25,158.82]
[1740764682399,6.3323,144.33,144.32,312.0]
[1740764682798,1.4712,144.37,144.27,18.64964886]
[1740764683013,1.4712,144.37,144.24,20.20034886]
[1740764683014,1.4712,144.37,144.24,20.82]
[1740764683796,1.4712,144.37,144.24,29.32]
[1740764684009,1.4712,144.37,144.24,36.2526]
[1740764684404,1.4712,144.37,144.24,152.9526]
[1740764685131,1.4712,144.37,144.24,146.02]
[1740764685817,1.4712,144.37,144.33,312.0]
[1740764686512,0.14216157,144.36,144.33,312.0]
[1740764686729,0.14216157,144.36,144.24,205.73]
[1740764686730,6.25518496,144.36,144.24,205.73]
[1740764687818,0.14216157,144.36,144.24,205.73]
[1740764687999,80.7,144.35,144.24,205.73]
[1740764688200,1.6406,144.43,144.28,2.0]
[1740764688420,1.6406,144.43,144.29,20.82]
[1740764688608,1.6406,144.43,144.3,29.38]
[1740764688804,1.6406,144.43,144.3,167.38]
[1740764689422,10.2006,144.43,144.3,167.38]
[1740764689617,10.2006,144.43,144.31,312.0]
[1740764690313,20.46774934,144.42,144.31,312.0]
[1740764690496,0.14216157,144.42,144.31,312.0]
[1740764691217,0.14216157,144.42,144.3,8.56]
[1740764691218,18.79181043,144.42,144.3,8.56]
[1740764692327,18.79181043,144.4,144.25,239.35]
[1740764692615,0.14216157,144.38,144.25,246.2824]
[1740764692802,80.7,144.39,144.25,246.2824]
[1740764694105,80.7,144.39,144.27,312.0]
[1740764694305,80.7,144.39,144.27,537.4612]
[1740764694722,80.7,144.39,144.27,225.4612]
[1740764697626,7.8633,144.37,144.3,312.0]
[1740764698140,7.8633,144.37,144.25,18.64964886]
[1740764698324,7.8633,144.37,144.25,218.53]
[1740764699542,6.3384,144.37,144.27,20.96216157]
[1740764699717,6.3384,144.37,144.29,20.96216157]
[1740764699922,6.3384,144.37,144.3,8.48]
[1740764700516,1.575,144.42,144.31,18.64964886]
[1740764700716,0.063,144.43,144.34,41.61181043]
[1740764700933,0.063,144.43,144.38,0.14216157]
[1740764701148,0.063,144.43,144.42,312.0]
[1740764701848,1.6488,144.43,144.32,263.2]
[1740764702022,1.6488,144.43,144.32,8.5]
[1740764702339,0.063,144.43,144.34,2.0]
[1740764702519,0.063,144.43,144.38,2.0]
[1740764702724,0.063,144.43,144.42,312.0]
[1740764703437,0.063,144.43,144.42,530.53]
[1740764703945,0.063,144.43,144.42,549.17964886]
[1740764704245,0.063,144.43,144.42,570.14181043]
[1740764704450,0.063,144.43,144.42,572.14181043]
[1740764704622,0.063,144.43,144.42,574.14181043]
[1740764705119,0.063,144.43,144.42,572.14181043]
[1740764705445,0.063,144.48,144.44,22.82]
[1740764705644,0.063,144.48,144.47,0.14216157]
[1740764705836,0.063,144.48,144.47,258.14181043]
[1740764706144,0.063,144.48,144.47,262.14181043]
[1740764706736,0.063,144.48,144.47,260.14181043]
[1740764707251,0.063,144.48,144.47,267.06361043]
[1740764708038,0.063,144.48,144.47,246.24361043]
[1740764708345,0.063,144.48,144.47,239.32181043]
[1740764708543,0.063,144.48,144.47,551.32181043]
[1740764708747,0.063,144.48,144.47,558.24361043]
[1740764709447,0.063,144.48,144.47,557.61964886]
[1740764711149,0.063,144.48,144.47,530.53]
[1740764711544,0.063,144.48,144.47,392.53]
[1740764711855,0.063,144.48,144.32,225.4589]
[1740764712348,0.063,144.48,144.32,218.53]
[1740764713332,0.20516157,144.48,144.33,8.42]
[1740764713543,0.20516157,144.48,144.32,218.53]
[1740764713751,0.20516157,144.48,144.34,8.42]
[1740764714257,0.063,144.48,144.34,228.95]
[1740764714432,0.063,144.48,144.35,18.79181043]
[1740764714634,0.063,144.48,144.47,312.0]
[1740764715147,0.063,144.48,144.35,218.53]
[1740764715334,0.063,144.48,144.36,18.64964886]
[1740764715529,0.063,144.48,144.35,218.53]
[1740764715936,0.063,144.48,144.46,312.0]
[1740764717752,0.063,144.48,144.35,218.53]
[1740764717953,80.7,144.47,144.35,218.53]
[1740764718158,80.7,144.47,144.35,239.35]
[1740764718658,80.7,144.47,144.35,218.53]
[1740764719445,80.7,144.47,144.33,135.22964886]
[1740764719446,0.14216157,144.44,144.33,80.53]
[1740764719661,89.06,144.43,144.33,80.53]
[1740764720356,82.51825363,144.42,144.31,80.56]
[1740764720540,80.7,144.42,144.31,80.56]
[1740764720737,80.7,144.42,144.31,138.03]
[1740764721541,80.7,144.41,144.31,81.03]
[1740764721854,8.36,144.43,144.4,312.0]
[1740764722069,80.7,144.42,144.4,312.0]
[1740764722246,80.7,144.42,144.32,8.38]
[1740764722445,8.36,144.43,144.32,227.38]
[1740764724367,2.14216157,144.38,144.31,0.03]
[1740764724568,0.14216157,144.36,144.31,0.03]
[1740764724979,89.12,144.37,144.31,0.03]
[1740764725145,89.12,144.37,144.33,312.0]
[1740764725642,8.42,144.37,144.31,0.03]
[1740764726849,1.9610533,144.36,144.31,0.03]
[1740764727162,0.14216157,144.34,144.31,0.03]
[1740764727468,82.66149363,144.34,144.31,0.0001]
[1740764728368,84.66149363,144.34,144.31,0.0001]
[1740764728767,0.14216157,144.32,144.24,0.03]
[1740764728950,8.36,144.31,144.24,0.03]
[1740764729773,80.7,144.32,144.28,312.0]
[1740764729967,80.7,144.34,144.28,312.0]
[1740764730175,80.7,144.34,144.24,219.03]
[1740764730363,6.2753,144.35,144.24,219.03]
[1740764730748,6.2753,144.35,144.25,18.64964886]
[1740764730954,6.2753,144.35,144.25,245.98964886]
[1740764731155,6.2753,144.35,144.25,227.34]
[1740764731780,6.2753,144.35,144.25,234.2723]
[1740764731986,6.2753,144.35,144.26,18.64964886]
[1740764732862,6.0153,144.4,144.27,0.14216157]
[1740764733179,6.0153,144.4,144.39,312.0]
[1740764733482,86.7153,144.4,144.28,237.64964886]
[1740764733862,6.0153,144.4,144.31,20.82]
[1740764734061,80.7,144.44,144.32,18.64964886]
[1740764734350,80.7,144.44,144.41,312.0]
[1740764734761,6.6027,144.45,144.34,18.64964886]
[1740764734963,6.6027,144.45,144.34,219.0]
[1740764735162,80.7,144.44,144.34,81.0]
[1740764736574,6.6027,144.45,144.34,239.82]
[1740764736774,0.063,144.48,144.36,20.82]
[1740764736973,0.063,144.48,144.37,47.72964886]
[1740764737576,0.063,144.48,144.37,266.72964886]
[1740764737778,0.063,144.48,144.47,312.0]
[1740764740103,0.063,144.48,144.4,1.5999]
[1740764740279,0.063,144.48,144.4,220.5999]
[1740764740967,0.063,144.48,144.47,312.0]
[1740764741885,0.063,144.48,144.37,81.0]
[1740764742191,0.14216157,144.47,144.37,81.0]
[1740764742969,0.063,144.48,144.37,81.0]
[1740764743167,80.763,144.48,144.37,219.0]
[1740764743587,0.063,144.48,144.38,18.64964886]
[1740764743977,0.063,144.48,144.38,237.64964886]
[1740764744981,0.14216157,144.46,144.36,81.0]
[1740764745187,3.95983714,144.46,144.34,219.0]
[1740764745368,0.14216157,144.44,144.3,199.1722]
[1740764745572,0.14216157,144.42,144.3,337.1722]
[1740764745776,80.7,144.41,144.3,199.1722]
[1740764746781,80.7,144.4,144.3,199.1722]
[1740764747181,80.7,144.42,144.31,18.64964886]
[1740764747391,6.4692,144.47,144.32,0.14216157]
[1740764747392,87.1692,144.47,144.32,0.14216157]
[1740764747573,87.1692,144.47,144.34,0.14216157]
[1740764747774,87.1692,144.47,144.33,26.84964886]
[1740764747973,87.1692,144.47,144.44,312.0]
[1740764748177,80.7,144.46,144.44,312.0]
[1740764748380,80.7,144.46,144.33,245.84964886]
[1740764748575,80.7,144.45,144.33,245.84964886]
[1740764749676,80.7,144.45,144.33,252.77814886]
[1740764750284,80.7,144.45,144.33,245.84964886]
[1740764750575,82.65980894,144.44,144.33,81.0]
[1740764750991,82.51764737,144.44,144.33,81.0]
[1740764751190,80.7,144.43,144.33,81.0]
[1740764751397,80.7,144.42,144.39,312.0]
[1740764752702,80.7,144.42,144.33,81.0]
[1740764752912,80.7,144.44,144.33,219.0]
[1740764753778,80.7,144.44,144.33,225.9285]
[1740764755685,0.063,144.45,144.43,312.0]
[1740764756088,0.063,144.45,144.37,6.9266]
[1740764756295,0.063,144.45,144.37,219.0]
[1740764756501,0.063,144.45,144.37,225.9266]
[1740764756686,0.063,144.45,144.37,89.06]